[Event "VIII Lorca Open-A 2019"]
[Site "Lorca"]
[Date "2019.12.27"]
[Round "3.2"]
[White "Bernadskiy, Vitaliy"]
[Black "Budnikov, Oleg"]
[Result "1-0"]
[ECO "B52"]
[WhiteElo "2593"]
[BlackElo "2429"]
[Annotator "ChessBase"]
[PlyCount "123"]
[EventDate "2019.12.26"]
[EventType "swiss"]
[EventCountry "ESP"]
[SourceTitle "playchess.com"]
[Source "ChessBase"]
[SourceQuality "1"]
[TimeControl "5400+30"]

1. e4 {[%emt 1:30:30]} c5 {[%emt 1:30:30]} 2. Nf3 {[%emt 0:00:30]} d6 {[%emt 0:00:30]} 3. Bb5+ {[%emt 0:00:30]} Bd7 {[%emt 0:00:30]} 4. Bxd7+ {[%emt 0:00:30]} Qxd7 {[%emt 0:00:30]} 5. O-O {[%emt 0:00:30]} Nf6 {[%emt 0:00:30]} 6. Qe2 {[%emt 0:00:30]} Nc6 {[%emt 0:00:30]} 7. Rd1 {[%emt 0:00:30]} e6 {[%emt 0:00:30]} 8. d4 {[%emt 0:00:30]} cxd4 {[%emt 0:00:30]} 9. Nxd4 {[%emt 0:00:30]} Be7 {[%emt 0:00:30]} 10. c4 {[%emt 0:00:30]} Nxd4 {[%emt 0:00:30]} 11. Rxd4 {[%emt 0:00:30]} Qc6 {[%emt 0:00:30]} 12. Nc3 {[%emt 0:00:30]} O-O {[%emt 0:00:30]} 13. Bg5 {[%emt 0:00:30]} Rfc8 {[%emt 0:00:30]} 14. Rad1 {[%emt 0:00:30]} Qc5 {[%emt 0:00:30]} 15. Bxf6 {[%emt 0:00:30]} Bxf6 {[%emt 0:00:30]} 16. Rxd6 {[%emt 0:00:30]} h6 {[%emt 0:00:30]} 17. g3 {[%emt 0:00:30]} Bxc3 {[%emt 0:00:30]} 18. bxc3 {[%emt 0:00:30]} Rc7 {[%emt 0:00:30]} 19. R6d4 {[%emt 0:00:30]} Rac8 {[%emt 0:00:30]} 20. e5 {[%emt 0:00:30]} Qa5 {[%emt 0:00:30]} 21. Rd8+ {[%emt 0:00:30]} Rxd8 {[%emt 0:00:30]} 22. Rxd8+ {[%emt 0:00:30]} Kh7 {[%emt 0:00:30]} 23. Qd3+ {[%emt 0:00:30]} g6 {[%emt 0:00:30]} 24. Qd6 {[%emt 0:00:30]} Qc5 {[%emt 0:00:30]} 25. Rb8 {[%emt 0:00:30]} h5 {[%emt 0:00:30]} 26. Qxc5 {[%emt 0:00:30]} Rxc5 {[%emt 0:00:30]} 27. Rxb7 {[%emt 0:00:30]} Kg7 {[%emt 0:00:30]} 28. Rxa7 {[%emt 0:00:30]} Rxc4 {[%emt 0:00:30]} 29. Ra3 {[%emt 0:00:30]} g5 {[%emt 0:00:30]} 30. f3 {[%emt 0:00:30]} Rc5 {[%emt 0:00:30]} 31. Kf2 {[%emt 0:00:30]} Rxe5 {[%emt 0:00:30]} 32. c4 {[%emt 0:00:30]} Kf6 {[%emt 0:00:30]} 33. Ra4 {[%emt 0:00:30]} g4 {[%emt 0:00:30]} 34. f4 {[%emt 0:00:30]} Re4 {[%emt 0:00:30]} 35. Rb4 {[%emt 0:00:30]} e5 {[%emt 0:00:30]} 36. fxe5+ {[%emt 0:00:30]} Rxe5 {[%emt 0:00:30]} 37. Rb2 {[%emt 0:00:30]} Re6 {[%emt 0:00:30]} 38. c5 {[%emt 0:00:30]} Kf5 {[%emt 0:00:30]} 39. Rc2 {[%emt 0:00:30]} Rc6 {[%emt 0:00:30]} 40. Ke3 {[%emt 0:00:30]} Ke5 {[%emt 0:00:30]} 41. Kd3 {[%emt 0:00:30]} Kd5 {[%emt 0:00:30]} 42. Rf2 {[%emt 0:00:30]} Ra6 {[%emt 0:00:30]} 43. Kc3 {[%emt 0:00:30]} Ra3+ {[%emt 0:00:30]} 44. Kb4 {[%emt 0:00:30]} Rf3 {[%emt 0:00:30]} 45. Rd2+ {[%emt 0:00:30]} Kc6 {[%emt 0:00:30]} 46. Rd6+ {[%emt 0:00:30]} Kc7 {[%emt 0:00:30]} 47. Rh6 {[%emt 0:00:30]} Rf2 {[%emt 0:00:30]} 48. Rxh5 {[%emt 0:00:30]} Rxa2 {[%emt 0:00:30]} 49. Rf5 {[%emt 0:00:30]} Kc6 {[%emt 0:00:30]} 50. Rxf7 {[%emt 0:00:30]} Rxh2 {[%emt 0:00:30]} 51. Rf6+ {[%emt 0:00:30]} Kd5 {[%emt 0:00:30]} 52. Rd6+ {[%emt 0:00:30]} Ke4 {[%emt 0:00:30]} 53. c6 {[%emt 0:00:30]} Rc2 {[%emt 0:00:30]} 54. Kb5 {[%emt 0:00:30]} Rc3 {[%emt 0:00:30]} 55. Rf6 {[%emt 0:00:30]} Kd5 {[%emt 0:00:30]} 56. Rg6 {[%emt 0:00:30]} Rxg3 {[%emt 0:00:30]} 57. c7 {[%emt 0:00:30]} Rc3 {[%emt 0:00:30]} 58. Kb6 {[%emt 0:00:30]} g3 {[%emt 0:00:30]} 59. Rxg3 {[%emt 0:00:30]} Rxg3 {[%emt 0:00:30]} 60. c8=Q {[%emt 0:00:30]} Rg6+ {[%emt 0:00:30]} 61. Kb5 {[%emt 0:00:30]} Rd6 {[%emt 0:00:30]} 62. Qf5+ {[%emt 0:00:30]} 1-0

[Event "VIII Lorca Open-A 2019"]
[Site "Lorca"]
[Date "2019.12.27"]
[Round "3.3"]
[White "Pogorelov, Ruslan"]
[Black "Sivuk, Vitaly"]
[Result "1/2-1/2"]
[ECO "D37"]
[WhiteElo "2377"]
[BlackElo "2588"]
[Annotator "ChessBase"]
[PlyCount "99"]
[EventDate "2019.12.26"]
[EventType "swiss"]
[EventCountry "ESP"]
[SourceTitle "playchess.com"]
[Source "ChessBase"]
[SourceQuality "1"]
[TimeControl "5400+30"]

1. Nf3 {[%emt 0:03:33]} d5 {[%emt 0:00:00]} 2. d4 {[%emt 0:00:06]} Nf6 {[%emt 0:00:00]} 3. c4 {[%emt 0:00:07]} e6 {[%emt 0:00:01]} 4. Nc3 {[%emt 0:00:11]} a6 {[%emt 0:00:11]} 5. cxd5 {[%emt 0:00:25]} exd5 {[%emt 0:00:06]} 6. Bg5 {[%emt 0:02:30]} Be6 {[%emt 0:00:14]} 7. e3 {[%emt 0:00:42]} Nbd7 {[%emt 0:00:17]} 8. Bd3 {[%emt 0:03:13]} Bd6 {[%emt 0:00:40]} 9. Qc2 {[%emt 0:01:01]} c6 {[%emt 0:00:46]} 10. Bh4 {[%emt 0:14:14]} Qc7 {[%emt 0:02:41]} 11. Bg3 {[%emt 0:01:42]} O-O {[%emt 0:00:28]} 12. O-O {[%emt 0:05:01]} Rfe8 {[%emt 0:02:32]} 13. b4 {[%emt 0:02:47]} Bxg3 {[%emt 0:03:50]} 14. hxg3 {[%emt 0:00:09]} Qd6 {[%emt 0:00:20]} 15. Rab1 {[%emt 0:00:58]} h6 {[%emt 0:01:50]} 16. a4 {[%emt 0:00:41]} Rac8 {[%emt 0:01:27]} 17. Rfc1 {[%emt 0:01:23]} Ng4 {[%emt 0:04:14]} 18. Ne2 {[%emt 0:17:00]} Ndf6 {[%emt 0:01:52]} 19. Nf4 {[%emt 0:00:21]} Bd7 {[%emt 0:02:54]} 20. Bf5 {[%emt 0:18:31]} Ne4 {[%emt 0:17:18]} 21. Bxd7 {[%emt 0:15:08]} Qxd7 {[%emt 0:00:15]} 22. Nd3 {[%emt 0:00:16]} Qf5 {[%emt 0:04:23]} 23. Nh2 {[%emt 0:03:09]} Nxh2 {[%emt 0:04:45]} 24. Kxh2 {[%emt 0:00:02]} h5 {[%emt 0:00:31]} 25. Qe2 {[%emt 0:03:00]} Re6 {[%emt 0:02:09]} 26. Nc5 {[%emt 0:05:32]} Nxf2 {[%emt 0:05:51]} 27. Nxe6 {[%emt 0:00:14]} Ng4+ {[%emt 0:00:10]} 28. Kg1 {[%emt 0:00:12]} Qxe6 {[%emt 0:00:03]} 29. Rb3 {[%emt 0:00:21]} Re8 {[%emt 0:01:06]} 30. Rcc3 {[%emt 0:00:35]} Nf6 {[%emt 0:01:33]} 31. Rc2 {[%emt 0:01:11]} Qd6 {[%emt 0:02:06]} 32. Qf3 {[%emt 0:00:22]} Re4 {[%emt 0:01:43]} 33. b5 {[%emt 0:00:21]} axb5 {[%emt 0:00:19]} 34. axb5 {[%emt 0:00:02]} Rg4 {[%emt 0:00:17]} 35. bxc6 {[%emt 0:00:25]} bxc6 {[%emt 0:00:04]} 36. Rb6 {[%emt 0:01:10]} Rxg3 {[%emt 0:01:08]} 37. Qf5 {[%emt 0:01:11]} Rxe3 {[%emt 0:04:44]} 38. Rbxc6 {[%emt 0:00:36]} Qg3 {[%emt 0:05:22]} 39. Rc8+ {[%emt 0:00:18]} Ne8 {[%emt 0:00:09]} 40. Rc1 {[%emt 0:00:10]} Re2 {[%emt 0:10:01]} 41. Qf3 {[%emt 0:00:07]} Qxf3 {[%emt 0:01:00]} 42. gxf3 {[%emt 0:00:02]} Kh7 {[%emt 0:00:23]} 43. Kf1 {[%emt 0:00:13]} Re6 {[%emt 0:00:38]} 44. Re1 {[%emt 0:00:16]} Nd6 {[%emt 0:06:55]} 45. Rxe6 {[%emt 0:00:16]} fxe6 {[%emt 0:00:05]} 46. Rc6 {[%emt 0:00:15]} Nf5 {[%emt 0:00:07]} 47. Rxe6 {[%emt 0:00:18]} Nxd4 {[%emt 0:00:05]} 48. Re5 {[%emt 0:00:16]} Nxf3 {[%emt 0:00:09]} 49. Rxh5+ {[%emt 0:00:11]} Kg6 {[%emt 0:00:02]} 50. Rxd5 {[%emt 0:00:10]} 1/2-1/2

[Event "VIII Lorca Open-A 2019"]
[Site "Lorca"]
[Date "2019.12.27"]
[Round "3.4"]
[White "Krysa, Leandro"]
[Black "Mingarro Carceller, Sergi"]
[Result "1-0"]
[ECO "A13"]
[WhiteElo "2527"]
[BlackElo "2359"]
[Annotator "ChessBase"]
[PlyCount "83"]
[EventDate "2019.12.26"]
[EventType "swiss"]
[EventCountry "ESP"]
[SourceTitle "playchess.com"]
[Source "ChessBase"]
[SourceQuality "1"]
[TimeControl "5400+30"]

1. c4 {[%emt 0:00:00]} e6 {[%emt 0:00:57]} 2. Nc3 {[%emt 0:00:00]} d5 {[%emt 0:00:21]} 3. e3 {[%emt 0:00:00]} Nf6 {[%emt 0:00:53]} 4. Nf3 {[%emt 0:00:05]} Be7 {[%emt 0:01:39]} 5. b3 {[%emt 0:00:16]} O-O {[%emt 0:01:00]} 6. Bb2 {[%emt 0:00:15]} c5 {[%emt 0:00:32]} 7. cxd5 {[%emt 0:00:08]} exd5 {[%emt 0:00:28]} 8. d4 {[%emt 0:01:14]} Nc6 {[%emt 0:03:47]} 9. Be2 {[%emt 0:00:37]} Ne4 {[%emt 0:02:49]} 10. dxc5 {[%emt 0:09:23]} Qa5 {[%emt 0:09:46]} 11. Rc1 {[%emt 0:00:40]} Bf6 {[%emt 0:04:44]} 12. Nd4 {[%emt 0:01:10]} Nxc5 {[%emt 0:12:01]} 13. Nxc6 {[%emt 0:00:15]} bxc6 {[%emt 0:00:07]} 14. O-O {[%emt 0:00:06]} Ne6 {[%emt 0:04:54]} 15. Qe1 {[%emt 0:11:32]} Qd8 {[%emt 0:05:26]} 16. Na4 {[%emt 0:01:52]} Bd7 {[%emt 0:09:38]} 17. Bxf6 {[%emt 0:13:32]} Qxf6 {[%emt 0:00:39]} 18. Bg4 {[%emt 0:05:43]} Qe7 {[%emt 0:09:13]} 19. Bf5 {[%emt 0:07:54]} c5 {[%emt 0:02:27]} 20. Qa5 {[%emt 0:02:37]} Bxa4 {[%emt 0:02:03]} 21. Qxa4 {[%emt 0:00:07]} g6 {[%emt 0:01:17]} 22. Bg4 {[%emt 0:04:09]} Rfd8 {[%emt 0:02:26]} 23. Rc2 {[%emt 0:03:51]} Rac8 {[%emt 0:04:06]} 24. Rfc1 {[%emt 0:04:15]} Rc7 {[%emt 0:05:20]} 25. Qa5 {[%emt 0:02:19]} Rdc8 {[%emt 0:00:50]} 26. h3 {[%emt 0:01:33]} Kg7 {[%emt 0:01:07]} 27. b4 {[%emt 0:09:17]} cxb4 {[%emt 0:03:09]} 28. Rxc7 {[%emt 0:00:29]} Rxc7 {[%emt 0:00:08]} 29. Rxc7 {[%emt 0:00:17]} Nxc7 {[%emt 0:01:26]} 30. Qxa7 {[%emt 0:04:14]} Qd6 {[%emt 0:03:29]} 31. Qd4+ {[%emt 0:02:09]} Kg8 {[%emt 0:00:44]} 32. Bf3 {[%emt 0:00:58]} h5 {[%emt 0:03:47]} 33. g3 {[%emt 0:03:03]} Kf8 {[%emt 0:01:00]} 34. e4 {[%emt 0:01:28]} Nb5 {[%emt 0:01:00]} 35. Qh8+ {[%emt 0:01:30]} Ke7 {[%emt 0:00:02]} 36. exd5 {[%emt 0:01:10]} Qf6 {[%emt 0:03:43]} 37. Qb8 {[%emt 0:01:13]} Nd4 {[%emt 0:00:38]} 38. Qxb4+ {[%emt 0:00:15]} Ke8 {[%emt 0:00:13]} 39. Bd1 {[%emt 0:00:46]} h4 {[%emt 0:00:51]} 40. Ba4+ {[%emt 0:01:50]} Kd8 {[%emt 0:00:05]} 41. d6 {[%emt 0:01:24]} Ne2+ {[%emt 0:00:58]} 42. Kg2 {[%emt 0:07:24]} 1-0

[Event "VIII Lorca Open-A 2019"]
[Site "Lorca"]
[Date "2019.12.27"]
[Round "3.5"]
[White "Manu David Suthandram R"]
[Black "Bjerre, Jonas Buhl"]
[Result "0-1"]
[ECO "A01"]
[WhiteElo "2369"]
[BlackElo "2526"]
[Annotator "ChessBase"]
[PlyCount "62"]
[EventDate "2019.12.26"]
[EventType "swiss"]
[EventCountry "ESP"]
[SourceTitle "playchess.com"]
[Source "ChessBase"]
[SourceQuality "1"]
[TimeControl "5400+30"]

1. b3 {[%emt 0:05:42]} e5 {[%emt 0:00:19]} 2. Bb2 {[%emt 0:00:06]} Nc6 {[%emt 0:00:15]} 3. e3 {[%emt 0:00:10]} Nf6 {[%emt 0:00:58]} 4. Bb5 {[%emt 0:00:15]} Bd6 {[%emt 0:01:14]} 5. Na3 {[%emt 0:00:08]} Be7 {[%emt 0:01:07]} 6. d4 {[%emt 0:09:48]} e4 {[%emt 0:10:53]} 7. Ne2 {[%emt 0:12:26]} d5 {[%emt 0:02:17]} 8. h3 {[%emt 0:16:55]} O-O {[%emt 0:04:10]} 9. Nf4 {[%emt 0:12:35]} Bd6 {[%emt 1:13:17]} 10. c3 {[%emt 0:05:05]} Ne7 {[%emt 0:00:00]} 11. Nc2 {[%emt 0:00:19]} Nf5 {[%emt 0:00:00]} 12. g3 {[%emt 0:09:38]} Qe7 {[%emt 0:00:00]} 13. Ng2 {[%emt 0:00:58]} c6 {[%emt 0:00:00]} 14. Be2 {[%emt 0:00:06]} Qc7 {[%emt 0:00:00]} 15. Kd2 {[%emt 0:02:41]} c5 {[%emt 0:03:00]} 16. dxc5 Bxc5 17. Rc1 Bd7 18. a3 Qb6 19. Nd4 Rfc8 20. Nxf5 Bxf5 21. Ke1 Bd6 22. Nf4 Be5 {[%emt 0:00:00]} 23. Nxd5 {[%emt 0:05:05]} Nxd5 {[%emt 0:00:00]} 24. Qxd5 {[%emt 0:15:17]} Rc5 {[%emt 0:00:00]} 25. Qd1 {[%emt 0:00:06]} Rd8 {[%emt 0:00:00]} 26. Qc2 {[%emt 0:00:04]} Rcd5 {[%emt 0:00:00]} 27. Bc4 {[%emt 0:01:54]} R5d7 {[%emt 0:06:00]} 28. g4 Be6 {[%emt 0:00:00]} 29. Qxe4 {[%emt 0:01:11]} Bxc4 {[%emt 0:01:00]} 30. Qxc4 Rd2 31. Qe4 Qa6 {[%emt 0:00:00]} 0-1

[Event "VIII Lorca Open-A 2019"]
[Site "Lorca"]
[Date "2019.12.27"]
[Round "3.6"]
[White "Maiorov, Nikita"]
[Black "Fernandez Diaz, Cristian"]
[Result "1-0"]
[ECO "E46"]
[WhiteElo "2523"]
[BlackElo "2354"]
[Annotator "ChessBase"]
[PlyCount "67"]
[EventDate "2019.12.26"]
[EventType "swiss"]
[EventCountry "ESP"]
[SourceTitle "playchess.com"]
[Source "ChessBase"]
[SourceQuality "1"]
[TimeControl "5400+30"]

1. d4 {[%emt 1:30:30]} Nf6 {[%emt 1:30:30]} 2. c4 {[%emt 0:00:30]} e6 {[%emt 0:00:30]} 3. Nc3 {[%emt 0:00:30]} Bb4 {[%emt 0:00:30]} 4. e3 {[%emt 0:00:30]} O-O {[%emt 0:00:30]} 5. Nge2 {[%emt 0:00:30]} c6 {[%emt 0:00:30]} 6. a3 {[%emt 0:00:30]} Ba5 {[%emt 0:00:30]} 7. b4 {[%emt 0:00:30]} Bc7 {[%emt 0:00:30]} 8. Ng3 {[%emt 0:00:30]} d5 {[%emt 0:00:30]} 9. cxd5 {[%emt 0:00:30]} exd5 {[%emt 0:00:30]} 10. Bd3 {[%emt 0:00:30]} Re8 {[%emt 0:00:30]} 11. O-O {[%emt 0:00:30]} Nbd7 {[%emt 0:00:30]} 12. Rb1 {[%emt 0:00:30]} Nf8 {[%emt 0:00:30]} 13. b5 {[%emt 0:00:30]} Ne6 {[%emt 0:00:30]} 14. Qc2 {[%emt 0:00:30]} c5 {[%emt 0:00:30]} 15. dxc5 {[%emt 0:00:30]} Nxc5 {[%emt 0:00:30]} 16. Nce2 {[%emt 0:00:30]} Nxd3 {[%emt 0:00:30]} 17. Qxd3 {[%emt 0:00:30]} Be6 {[%emt 0:00:30]} 18. Bb2 {[%emt 0:00:30]} Ne4 {[%emt 0:00:30]} 19. Rbc1 {[%emt 0:00:30]} Bd6 {[%emt 0:00:30]} 20. Qd4 {[%emt 0:00:30]} Bf8 {[%emt 0:00:30]} 21. Nf4 {[%emt 0:00:30]} Nxg3 {[%emt 0:00:30]} 22. hxg3 {[%emt 0:00:30]} Qd7 {[%emt 0:00:30]} 23. a4 {[%emt 0:00:30]} a6 {[%emt 0:00:30]} 24. b6 {[%emt 0:00:30]} Rac8 {[%emt 0:00:30]} 25. Rfd1 {[%emt 0:00:30]} a5 {[%emt 0:00:30]} 26. Rxc8 {[%emt 0:00:30]} Rxc8 {[%emt 0:00:30]} 27. Nxd5 {[%emt 0:00:30]} Bxd5 {[%emt 0:00:30]} 28. Qxd5 {[%emt 0:00:30]} Qxa4 {[%emt 0:00:30]} 29. Ra1 {[%emt 0:00:30]} Qc2 {[%emt 0:00:30]} 30. Rc1 {[%emt 0:00:30]} Qxb2 {[%emt 0:00:30]} 31. Rxc8 {[%emt 0:00:30]} Qxb6 {[%emt 0:00:30]} 32. Ra8 {[%emt 0:00:30]} Qb1+ {[%emt 0:00:30]} 33. Kh2 {[%emt 0:00:30]} b6 {[%emt 0:00:30]} 34. Rxf8+ {[%emt 0:00:30]} 1-0

[Event "VIII Lorca Open-A 2019"]
[Site "Lorca"]
[Date "2019.12.27"]
[Round "3.7"]
[White "Malovanyi, Yulian"]
[Black "Sosa, Tomas"]
[Result "0-1"]
[ECO "B35"]
[WhiteElo "2360"]
[BlackElo "2520"]
[Annotator "ChessBase"]
[PlyCount "92"]
[EventDate "2019.12.26"]
[EventType "swiss"]
[EventCountry "ESP"]
[SourceTitle "playchess.com"]
[Source "ChessBase"]
[SourceQuality "1"]
[TimeControl "5400+30"]

1. e4 {[%emt 0:12:04]} c5 {[%emt 0:00:00]} 2. Nc3 {[%emt 0:00:09]} Nc6 {[%emt 0:00:02]} 3. Nge2 {[%emt 0:00:09]} g6 {[%emt 0:00:07]} 4. d4 {[%emt 0:03:47]} cxd4 {[%emt 0:00:07]} 5. Nxd4 {[%emt 0:00:04]} Bg7 {[%emt 0:00:09]} 6. Be3 {[%emt 0:00:07]} Nf6 {[%emt 0:00:08]} 7. Bc4 {[%emt 0:00:13]} O-O {[%emt 0:00:07]} 8. Bb3 {[%emt 0:00:13]} Re8 {[%emt 0:00:07]} 9. h3 {[%emt 0:02:53]} d6 {[%emt 0:02:26]} 10. O-O {[%emt 0:00:24]} Na5 {[%emt 0:03:08]} 11. Bg5 {[%emt 0:08:08]} Bd7 {[%emt 0:07:02]} 12. Re1 {[%emt 0:02:28]} Rc8 {[%emt 0:02:11]} 13. Nd5 {[%emt 0:01:27]} Nxd5 {[%emt 0:09:39]} 14. exd5 {[%emt 0:02:32]} Nc4 {[%emt 0:02:15]} 15. Rb1 {[%emt 0:06:39]} Qa5 {[%emt 0:11:07]} 16. c3 {[%emt 0:31:22]} f6 {[%emt 0:03:46]} 17. Qe2 {[%emt 0:22:01]} Qxd5 {[%emt 0:00:50]} 18. Be3 {[%emt 0:00:17]} a5 {[%emt 0:01:32]} 19. Rbd1 {[%emt 0:00:20]} a4 {[%emt 0:00:59]} 20. Nf5 {[%emt 0:01:46]} Qf7 {[%emt 0:06:04]} 21. Nxg7 {[%emt 0:00:53]} Kxg7 {[%emt 0:00:19]} 22. Bxc4 {[%emt 0:00:09]} Rxc4 {[%emt 0:00:19]} 23. a3 {[%emt 0:00:16]} Bc6 {[%emt 0:02:01]} 24. Rd4 {[%emt 0:00:46]} Rxd4 {[%emt 0:03:21]} 25. Bxd4 {[%emt 0:00:01]} e5 {[%emt 0:03:14]} 26. Be3 {[%emt 0:00:23]} f5 {[%emt 0:00:40]} 27. f3 {[%emt 0:00:24]} f4 {[%emt 0:00:32]} 28. Bf2 {[%emt 0:00:09]} g5 {[%emt 0:00:09]} 29. Qd2 {[%emt 0:00:47]} Re6 {[%emt 0:00:12]} 30. c4 {[%emt 0:01:04]} h5 {[%emt 0:03:38]} 31. Qc3 {[%emt 0:01:39]} Qf5 {[%emt 0:04:43]} 32. c5 {[%emt 0:01:49]} d5 {[%emt 0:01:43]} 33. Qa5 {[%emt 0:00:06]} Re8 {[%emt 0:02:45]} 34. Qc7+ {[%emt 0:00:12]} Qd7 {[%emt 0:00:06]} 35. Qd6 {[%emt 0:01:10]} Qxd6 {[%emt 0:03:01]} 36. cxd6 {[%emt 0:00:01]} d4 {[%emt 0:00:41]} 37. Re2 {[%emt 0:00:01]} Kf6 {[%emt 0:00:40]} 38. Be1 {[%emt 0:00:17]} Ke6 {[%emt 0:00:51]} 39. Bb4 {[%emt 0:00:05]} Rg8 {[%emt 0:00:10]} 40. Kf2 {[%emt 0:01:10]} g4 {[%emt 0:00:15]} 41. hxg4 {[%emt 0:00:05]} hxg4 {[%emt 0:00:04]} 42. Rd2 {[%emt 0:00:10]} gxf3 {[%emt 0:01:18]} 43. gxf3 {[%emt 0:00:02]} Rg3 {[%emt 0:00:10]} 44. Rd3 {[%emt 0:00:01]} b6 {[%emt 0:00:39]} 45. Bd2 {[%emt 0:01:24]} Bb5 {[%emt 0:02:30]} 46. d7 {[%emt 0:00:08]} Rg8 {[%emt 0:00:19]} 0-1

[Event "VIII Lorca Open-A 2019"]
[Site "Lorca"]
[Date "2019.12.27"]
[Round "3.8"]
[White "Narciso Dublan, Marc"]
[Black "Barbero Sendic, Alejandro"]
[Result "1-0"]
[ECO "D26"]
[WhiteElo "2516"]
[BlackElo "2336"]
[Annotator "ChessBase"]
[PlyCount "55"]
[EventDate "2019.12.26"]
[EventType "swiss"]
[EventCountry "ESP"]
[SourceTitle "playchess.com"]
[Source "ChessBase"]
[SourceQuality "1"]
[TimeControl "5400+30"]

1. d4 {[%emt 0:01:03]} d5 {[%emt 0:00:25]} 2. Nf3 {[%emt 0:00:19]} Nf6 {[%emt 0:00:15]} 3. c4 {[%emt 0:00:21]} dxc4 {[%emt 0:00:18]} 4. e3 {[%emt 0:00:22]} e6 {[%emt 0:00:16]} 5. Bxc4 {[%emt 0:00:17]} a6 {[%emt 0:00:12]} 6. O-O {[%emt 0:00:23]} b5 {[%emt 0:00:19]} 7. Be2 {[%emt 0:00:50]} Bb7 {[%emt 0:01:09]} 8. a4 {[%emt 0:00:25]} b4 {[%emt 0:00:09]} 9. Nbd2 {[%emt 0:03:09]} Nbd7 {[%emt 0:04:19]} 10. Nb3 {[%emt 0:03:07]} c5 {[%emt 0:01:37]} 11. Bd2 {[%emt 0:01:01]} cxd4 {[%emt 0:04:56]} 12. Nfxd4 {[%emt 0:01:23]} Bd6 {[%emt 0:14:11]} 13. Be1 {[%emt 0:05:23]} Bd5 {[%emt 0:09:31]} 14. Rc1 {[%emt 0:09:23]} O-O {[%emt 0:02:12]} 15. f3 {[%emt 0:06:22]} Qb8 {[%emt 0:03:16]} 16. g3 {[%emt 0:01:54]} Rc8 {[%emt 0:11:50]} 17. e4 {[%emt 0:05:25]} Bxb3 {[%emt 0:00:38]} 18. Rxc8+ {[%emt 0:00:57]} Qxc8 {[%emt 0:00:11]} 19. Nxb3 {[%emt 0:00:07]} Bf8 {[%emt 0:03:41]} 20. a5 {[%emt 0:05:00]} Nc5 {[%emt 0:09:13]} 21. Nd2 {[%emt 0:08:20]} Nb7 {[%emt 0:04:51]} 22. Qa4 {[%emt 0:00:26]} Qc1 {[%emt 0:03:44]} 23. Nc4 {[%emt 0:02:41]} Nc5 {[%emt 0:11:27]} 24. Qxb4 {[%emt 0:08:16]} Ncxe4 {[%emt 0:02:59]} 25. Qb7 {[%emt 0:01:14]} Rd8 {[%emt 0:07:17]} 26. fxe4 {[%emt 0:03:15]} Qc2 {[%emt 0:01:08]} 27. Nd2 {[%emt 0:08:08]} Bc5+ {[%emt 0:01:14]} 28. Kh1 {[%emt 0:02:40]} 1-0

[Event "VIII Lorca Open-A 2019"]
[Site "Lorca"]
[Date "2019.12.28"]
[Round "4.1"]
[White "Grigoryan, Karen H."]
[Black "Narciso Dublan, Marc"]
[Result "1/2-1/2"]
[ECO "B12"]
[WhiteElo "2621"]
[BlackElo "2516"]
[Annotator "RC"]
[PlyCount "57"]
[EventDate "2019.12.26"]
[EventType "swiss"]
[EventCountry "ESP"]
[SourceTitle "playchess.com"]
[Source "ChessBase"]
[SourceQuality "1"]
[TimeControl "5400+30"]

1. e4 {[%emt 0:02:57]} c6 {[%emt 0:00:00]} 2. d4 {[%emt 0:00:07]} d5 {[%emt 0:00:05]} 3. e5 {[%emt 0:00:04]} Bf5 {[%emt 0:00:21]} 4. h4 {[%emt 0:01:21]} h5 {[%emt 0:00:16]} 5. c4 {[%emt 0:00:06]} e6 {[%emt 0:00:24]} 6. Nc3 {[%emt 0:00:06]} Nd7 {[%emt 0:01:06]} 7. Nf3 {[%emt 0:03:06]} Ne7 {[%emt 0:07:35]} 8. Bg5 {[%emt 0:01:28]} f6 {[%emt 0:00:58]} 9. Be3 {[%emt 0:02:24]} Bg4 {[%emt 0:02:15]} 10. Qc2 {[%emt 0:21:36]} Qc7 {[%emt 0:00:30]} 11. cxd5 {[%emt 0:00:30]} cxd5 {[%emt 0:00:30]} 12. Qa4 {[%emt 0:00:30]} Nc6 {[%emt 0:00:30]} 13. Bd3 {[%emt 0:00:30]} Kf7 {[%emt 0:00:30]} 14. Qc2 {[%emt 0:00:30]} Bxf3 {[%emt 0:00:30]} 15. Bg6+ {[%emt 0:00:30]} Kg8 {[%emt 0:00:30]} 16. exf6 {[%emt 0:00:30]} Nxf6 {[%emt 0:00:30]} 17. gxf3 {[%emt 0:00:30]} Bb4 {[%emt 0:00:30]} 18. a3 {[%emt 0:00:30]} Bxc3+ {[%emt 0:00:30]} 19. Qxc3 {[%emt 0:00:30]} Qd7 {[%emt 0:00:30]} 20. Rc1 {[%emt 0:00:30]} Rf8 {[%emt 0:00:30]} 21. Rg1 {[%emt 0:00:30]} Ne8 {[%emt 0:00:30]} 22. Rg5 {[%emt 0:00:30]} Nd6 {[%emt 0:00:30]} 23. Ke2 {[%emt 0:00:30]} Ne7 {[%emt 0:00:30]} 24. Bxh5 {[%emt 0:00:30]} Rc8 {[%emt 0:00:30]} 25. Qd3 {[%emt 0:00:30]} Rxc1 {[%emt 0:00:30]} 26. Bxc1 {[%emt 0:00:30]} Nef5 {[%emt 0:00:30]} 27. Be3 {[%emt 0:00:30]} Nf7 {[%emt 0:00:30]} 28. Bxf7+ {[%emt 0:00:30]} Qxf7 {[%emt 0:00:30]} 29. h5 {[%emt 0:00:30]} 1/2-1/2

[Event "VIII Lorca Open-A 2019"]
[Site "Lorca"]
[Date "2019.12.28"]
[Round "4.3"]
[White "Marin, Mihail"]
[Black "Krysa, Leandro"]
[Result "1/2-1/2"]
[ECO "A03"]
[WhiteElo "2496"]
[BlackElo "2527"]
[Annotator "ChessBase"]
[PlyCount "76"]
[EventDate "2019.12.26"]
[EventType "swiss"]
[EventCountry "ESP"]
[SourceTitle "playchess.com"]
[Source "ChessBase"]
[SourceQuality "1"]
[TimeControl "5400+30"]

1. f4 {[%emt 0:00:00]} d5 {[%emt 0:00:47]} 2. Nf3 {[%emt 0:00:00]} Nf6 {[%emt 0:00:27]} 3. g3 {[%emt 0:00:00]} g6 {[%emt 0:00:12]} 4. Bg2 {[%emt 0:00:02]} Bg7 {[%emt 0:00:08]} 5. O-O {[%emt 0:00:06]} O-O {[%emt 0:00:06]} 6. d3 {[%emt 0:00:11]} c5 {[%emt 0:01:08]} 7. Qe1 {[%emt 0:00:07]} d4 {[%emt 0:01:12]} 8. Na3 {[%emt 0:00:19]} Nc6 {[%emt 0:00:33]} 9. c4 {[%emt 0:00:05]} Re8 {[%emt 0:00:45]} 10. Rb1 {[%emt 0:11:14]} Nb4 {[%emt 0:00:12]} 11. Bd2 {[%emt 1:23:26]} a5 12. Ra1 e5 13. fxe5 Ng4 14. h3 Nxe5 15. Nxe5 Rxe5 16. Qd1 Qe7 17. Rf2 Bd7 18. Bf4 Re8 19. Bxe5 Bxe5 20. g4 Bg3 21. Rf3 Bb8 22. Nc2 Nxc2 23. Qxc2 Bc6 24. Raf1 Qe5 25. R1f2 Qh2+ 26. Kf1 Bxf3 27. Rxf3 Bf4 28. Qa4 Rf8 29. Qxa5 Be3 30. Rf2 Bxf2 31. Kxf2 f5 32. g5 Qf4+ 33. Bf3 Qxg5 34. Qxc5 Qe3+ 35. Kg2 Qg5+ 36. Kf2 Qe3+ 37. Kg2 Qg5+ 38. Kf2 {[%emt 0:00:00]} Qe3+ {[%emt 0:13:44]} 1/2-1/2